[Event "*** Titled Tuesday Blitz"]
[Site "Chess.com"]
[Date "2020.11.24"]
[Round "5"]
[White "RobertoJBM"]
[Black "Das_Virus_2020"]
[Result "1-0"]
[WhiteElo "2696"]
[BlackElo "2500"]
[TimeControl "180+1"]
[EndTime "11:12:00 PST"]
[Termination "RobertoJBM won on time"]

1. d4 {[%clk 0:03:00.9]} 1... Nf6 {[%clk 0:02:59.3]} 2. c4 {[%clk 0:03:00.4]}
2... c5 {[%clk 0:02:59.1]} 3. d5 {[%clk 0:03:00.3]} 3... b5 {[%clk 0:02:58.9]}
4. cxb5 {[%clk 0:03:01.2]} 4... a6 {[%clk 0:02:59.1]} 5. b6 {[%clk 0:03:01.6]}
5... e6 {[%clk 0:02:57.5]} 6. Nc3 {[%clk 0:03:00.1]} 6... Nxd5 {[%clk
0:02:56.8]} 7. Nxd5 {[%clk 0:02:59.6]} 7... exd5 {[%clk 0:02:57.7]} 8. Qxd5
{[%clk 0:03:00.2]} 8... Nc6 {[%clk 0:02:57.9]} 9. Nf3 {[%clk 0:02:53.3]} 9...
Rb8 {[%clk 0:02:56.7]} 10. e3 {[%clk 0:02:43.6]} 10... Be7 {[%clk 0:02:43.5]}
11. Be2 {[%clk 0:02:40.7]} 11... O-O {[%clk 0:02:42.5]} 12. O-O {[%clk
0:02:40.4]} 12... Rxb6 {[%clk 0:02:43.1]} 13. b3 {[%clk 0:02:07]} 13... Nb4
{[%clk 0:01:59]} 14. Qd2 {[%clk 0:01:33.6]} 14... Rd6 {[%clk 0:01:07.2]} 15. Qc3
{[%clk 0:01:32.5]} 15... Bf6 {[%clk 0:00:29.8]} 16. Qxc5 {[%clk 0:01:32.4]}
16... Qb6 {[%clk 0:00:29.8]} 17. Qxb6 {[%clk 0:01:28.1]} 17... Rxb6 {[%clk
0:00:30.7]} 18. Nd4 {[%clk 0:01:23.9]} 18... Bxd4 {[%clk 0:00:23.1]} 19. exd4
{[%clk 0:01:23.6]} 19... Nc2 {[%clk 0:00:24]} 20. Rb1 {[%clk 0:01:18.8]} 20...
Nxd4 {[%clk 0:00:23.8]} 21. Bd3 {[%clk 0:01:17.3]} 21... Re6 {[%clk 0:00:18]}
22. Be3 {[%clk 0:01:12]} 22... Nc6 {[%clk 0:00:17.4]} 23. Bc4 {[%clk 0:01:08.9]}
23... Rg6 {[%clk 0:00:17.2]} 24. Rfd1 {[%clk 0:01:08.1]} 24... Re8 {[%clk
0:00:16.7]} 25. Rbc1 {[%clk 0:01:02.8]} 25... Ne5 {[%clk 0:00:16.3]} 26. Bd5
{[%clk 0:00:44]} 26... d6 {[%clk 0:00:14.4]} 27. Rc7 {[%clk 0:00:28]} 27... h5
{[%clk 0:00:10.1]} 28. Rdc1 {[%clk 0:00:23.5]} 28... Be6 {[%clk 0:00:09.6]} 29.
Bxe6 {[%clk 0:00:16.6]} 29... Rgxe6 {[%clk 0:00:10.2]} 30. h3 {[%clk 0:00:13]}
30... Kh7 {[%clk 0:00:06]} 31. Rd1 {[%clk 0:00:11.4]} 31... Kg6 {[%clk
0:00:04.7]} 32. Ra7 {[%clk 0:00:10.1]} 32... Rd8 {[%clk 0:00:02.1]} 33. Rxa6
{[%clk 0:00:09.9]} 33... d5 {[%clk 0:00:02.4]} 34. Ra5 {[%clk 0:00:07.4]} 1-0

[Event "*** Titled Tuesday Blitz"]
[Site "Chess.com"]
[Date "2020.11.24"]
[Round "5"]
[White "Orest_Vovk"]
[Black "andrzej"]
[Result "1-0"]
[WhiteElo "2534"]
[BlackElo "2388"]
[TimeControl "180+1"]
[EndTime "11:12:00 PST"]
[Termination "Orest_Vovk won on time"]

1. h3 {[%clk 0:03:00.9]} 1... d5 {[%clk 0:02:58.2]} 2. e4 {[%clk 0:03:01.2]}
2... dxe4 {[%clk 0:02:52.9]} 3. Nc3 {[%clk 0:03:01.5]} 3... Nf6 {[%clk 0:02:52]}
4. Qe2 {[%clk 0:03:01.1]} 4... e5 {[%clk 0:02:42.8]} 5. Nxe4 {[%clk 0:02:59.9]}
5... Nc6 {[%clk 0:02:39.8]} 6. Nf3 {[%clk 0:02:54.5]} 6... Be7 {[%clk
0:02:31.3]} 7. Nxf6+ {[%clk 0:02:53]} 7... Bxf6 {[%clk 0:02:30.4]} 8. Qe4 {[%clk
0:02:53.2]} 8... O-O {[%clk 0:02:23.9]} 9. Bc4 {[%clk 0:02:52.7]} 9... g6 {[%clk
0:02:08.8]} 10. O-O {[%clk 0:02:21]} 10... Bf5 {[%clk 0:02:04.5]} 11. Qe2 {[%clk
0:02:11.2]} 11... e4 {[%clk 0:01:58.8]} 12. Ne1 {[%clk 0:02:09.7]} 12... Nd4
{[%clk 0:01:58.5]} 13. Qd1 {[%clk 0:02:08.9]} 13... b5 {[%clk 0:01:56.5]} 14.
Bb3 {[%clk 0:01:58.3]} 14... c5 {[%clk 0:01:52.6]} 15. c3 {[%clk 0:01:54.4]}
15... Nc6 {[%clk 0:01:51.6]} 16. Bc2 {[%clk 0:01:50.4]} 16... c4 {[%clk
0:01:46.6]} 17. f3 {[%clk 0:01:42.7]} 17... Re8 {[%clk 0:01:23.5]} 18. fxe4
{[%clk 0:01:38.7]} 18... Bxe4 {[%clk 0:01:24.4]} 19. Bxe4 {[%clk 0:01:38.6]}
19... Rxe4 {[%clk 0:01:25.3]} 20. d4 {[%clk 0:01:34.9]} 20... cxd3 {[%clk
0:01:14.9]} 21. Qxd3 {[%clk 0:01:34.1]} 21... Qb6+ {[%clk 0:01:05.1]} 22. Kh1
{[%clk 0:01:33.3]} 22... Rae8 {[%clk 0:01:01.9]} 23. Nf3 {[%clk 0:01:32.9]}
23... Re2 {[%clk 0:00:55]} 24. Bg5 {[%clk 0:01:23.5]} 24... Bg7 {[%clk
0:00:42.1]} 25. Rae1 {[%clk 0:01:16.4]} 25... Rxe1 {[%clk 0:00:33.7]} 26. Rxe1
{[%clk 0:01:17.3]} 26... Rxe1+ {[%clk 0:00:30.1]} 27. Nxe1 {[%clk 0:01:18.2]}
27... Ne5 {[%clk 0:00:25.6]} 28. Qd8+ {[%clk 0:01:10.9]} 28... Qxd8 {[%clk
0:00:25.2]} 29. Bxd8 {[%clk 0:01:11.8]} 29... Nc4 {[%clk 0:00:25.4]} 30. Nd3
{[%clk 0:01:09.2]} 30... f5 {[%clk 0:00:25.7]} 31. Bc7 {[%clk 0:01:04.2]} 31...
Kf7 {[%clk 0:00:24]} 32. Kg1 {[%clk 0:01:04.1]} 32... Ke6 {[%clk 0:00:22.3]} 33.
Kf2 {[%clk 0:01:04.2]} 33... Kd5 {[%clk 0:00:21.9]} 34. Ke2 {[%clk 0:01:02.1]}
34... Ke4 {[%clk 0:00:16.7]} 35. b3 {[%clk 0:00:55.6]} 35... Na3 {[%clk
0:00:13.3]} 36. Ba5 {[%clk 0:00:38.4]} 36... Kd5 {[%clk 0:00:10]} 37. Kd2 {[%clk
0:00:33.3]} 37... Ke4 {[%clk 0:00:03.2]} 38. Nf2+ {[%clk 0:00:25.3]} 38... Kd5
{[%clk 0:00:03]} 39. Bb4 {[%clk 0:00:20.4]} 1-0

[Event "*** Titled Tuesday Blitz"]
[Site "Chess.com"]
[Date "2020.11.24"]
[Round "5"]
[White "Margarita2907"]
[Black "oykuince"]
[Result "1-0"]
[WhiteElo "2237"]
[BlackElo "1967"]
[TimeControl "180+1"]
[EndTime "11:12:00 PST"]
[Termination "Margarita2907 won by checkmate"]

1. e4 {[%clk 0:01:08.4]} 1... c5 {[%clk 0:02:56.3]} 2. Nf3 {[%clk 0:01:08.3]}
2... e6 {[%clk 0:02:55.8]} 3. d4 {[%clk 0:01:08.7]} 3... cxd4 {[%clk 0:02:56.1]}
4. Nxd4 {[%clk 0:01:08.8]} 4... Nc6 {[%clk 0:02:56.3]} 5. Nc3 {[%clk 0:01:07.2]}
5... Qc7 {[%clk 0:02:52.5]} 6. Be3 {[%clk 0:01:05]} 6... a6 {[%clk 0:02:52.4]}
7. Qd2 {[%clk 0:01:02.8]} 7... b5 {[%clk 0:02:50.7]} 8. a4 {[%clk 0:00:53.3]}
8... b4 {[%clk 0:02:46.5]} 9. Nd1 {[%clk 0:00:52.1]} 9... Nf6 {[%clk 0:02:43.8]}
10. Bd3 {[%clk 0:00:49.4]} 10... Bb7 {[%clk 0:02:41.1]} 11. f3 {[%clk
0:00:46.8]} 11... Ne5 {[%clk 0:02:34.7]} 12. O-O {[%clk 0:00:44.8]} 12... Nxd3
{[%clk 0:02:30.4]} 13. cxd3 {[%clk 0:00:44.4]} 13... Be7 {[%clk 0:02:00.3]} 14.
Nf2 {[%clk 0:00:42.1]} 14... O-O {[%clk 0:01:44.1]} 15. Rac1 {[%clk 0:00:42.1]}
15... Qa5 {[%clk 0:01:40.5]} 16. b3 {[%clk 0:00:42]} 16... Rac8 {[%clk
0:01:38.4]} 17. Ne2 {[%clk 0:00:37.8]} 17... d6 {[%clk 0:01:33]} 18. d4 {[%clk
0:00:37]} 18... e5 {[%clk 0:01:20.4]} 19. d5 {[%clk 0:00:34.4]} 19... Nd7 {[%clk
0:01:18.8]} 20. Nd3 {[%clk 0:00:33.8]} 20... Nc5 {[%clk 0:01:11.5]} 21. Nxc5
{[%clk 0:00:32.8]} 21... dxc5 {[%clk 0:01:06]} 22. f4 {[%clk 0:00:33]} 22... Bf6
{[%clk 0:00:55.9]} 23. f5 {[%clk 0:00:28.3]} 23... Rfd8 {[%clk 0:00:53.4]} 24.
Bg5 {[%clk 0:00:27.7]} 24... Bxg5 {[%clk 0:00:50.5]} 25. Qxg5 {[%clk 0:00:28.6]}
25... f6 {[%clk 0:00:50.5]} 26. Qg4 {[%clk 0:00:27.8]} 26... Rd7 {[%clk
0:00:50.4]} 27. Rf3 {[%clk 0:00:27.1]} 27... Rdc7 {[%clk 0:00:48.7]} 28. Rh3
{[%clk 0:00:24.2]} 28... c4 {[%clk 0:00:44.7]} 29. Qh5 {[%clk 0:00:23.1]} 29...
h6 {[%clk 0:00:43.3]} 30. bxc4 {[%clk 0:00:20.8]} 30... Rxc4 {[%clk 0:00:42.4]}
31. Rf1 {[%clk 0:00:21.4]} 31... Rxe4 {[%clk 0:00:37.7]} 32. Ng3 {[%clk
0:00:18]} 32... Rf4 {[%clk 0:00:27.4]} 33. Rxf4 {[%clk 0:00:15]} 33... exf4
{[%clk 0:00:26.9]} 34. Nf1 {[%clk 0:00:13.8]} 34... Qxd5 {[%clk 0:00:25.6]} 35.
Qg6 {[%clk 0:00:13.1]} 35... Qd4+ {[%clk 0:00:19.3]} 36. Kh1 {[%clk 0:00:12.4]}
36... Bd5 {[%clk 0:00:17]} 37. Rxh6 {[%clk 0:00:10.9]} 37... Rc1 {[%clk
0:00:11.4]} 38. Qe8# {[%clk 0:00:09.9]} 1-0

[Event "*** Titled Tuesday Blitz"]
[Site "Chess.com"]
[Date "2020.11.24"]
[Round "5"]
[White "Pelopidass"]
[Black "eightbyeightchess"]
[Result "1-0"]
[WhiteElo "2581"]
[BlackElo "2416"]
[TimeControl "180+1"]
[EndTime "11:12:05 PST"]
[Termination "Pelopidass won on time"]

1. e4 {[%clk 0:03:00.9]} 1... e6 {[%clk 0:02:59.2]} 2. d4 {[%clk 0:02:58.3]}
2... d5 {[%clk 0:02:59.5]} 3. Nc3 {[%clk 0:02:56.2]} 3... Nf6 {[%clk 0:02:59.5]}
4. Bg5 {[%clk 0:02:47.2]} 4... Be7 {[%clk 0:02:59.4]} 5. e5 {[%clk 0:02:46.1]}
5... Nfd7 {[%clk 0:02:57.3]} 6. Bxe7 {[%clk 0:02:46.4]} 6... Qxe7 {[%clk
0:02:58.2]} 7. h4 {[%clk 0:02:45.3]} 7... a6 {[%clk 0:02:57.9]} 8. h5 {[%clk
0:02:44.2]} 8... c5 {[%clk 0:02:56.5]} 9. h6 {[%clk 0:02:37.4]} 9... g6 {[%clk
0:02:52.8]} 10. Nf3 {[%clk 0:02:25.5]} 10... cxd4 {[%clk 0:02:49.8]} 11. Qxd4
{[%clk 0:02:26.4]} 11... Nc6 {[%clk 0:02:49.8]} 12. Qf4 {[%clk 0:02:25.9]} 12...
b5 {[%clk 0:02:31.2]} 13. Bd3 {[%clk 0:02:24]} 13... Bb7 {[%clk 0:02:13]} 14. a3
{[%clk 0:02:10.4]} 14... Rc8 {[%clk 0:01:36.4]} 15. Kf1 {[%clk 0:02:03.3]} 15...
Rc7 {[%clk 0:01:26]} 16. Nxd5 {[%clk 0:01:32.7]} 16... exd5 {[%clk 0:01:23.3]}
17. e6 {[%clk 0:01:33.3]} 17... Nf6 {[%clk 0:01:12.2]} 18. exf7+ {[%clk
0:01:29.2]} 18... Qxf7 {[%clk 0:01:08]} 19. Re1+ {[%clk 0:01:26.5]} 19... Ne4
{[%clk 0:00:59.6]} 20. Qd6 {[%clk 0:00:46.8]} 20... Rd7 {[%clk 0:00:39.9]} 21.
Bxe4 {[%clk 0:00:34]} 21... Rxd6 {[%clk 0:00:37.9]} 22. Bxg6+ {[%clk 0:00:34.5]}
22... Ne7 {[%clk 0:00:30.3]} 23. Bxf7+ {[%clk 0:00:32.3]} 23... Kxf7 {[%clk
0:00:31.2]} 24. Ne5+ {[%clk 0:00:28.3]} 24... Kf6 {[%clk 0:00:27]} 25. Rh3
{[%clk 0:00:27.1]} 25... Ng6 {[%clk 0:00:21.4]} 26. Ng4+ {[%clk 0:00:24.4]}
26... Kg5 {[%clk 0:00:20.4]} 27. Rg3 {[%clk 0:00:20.4]} 27... d4 {[%clk
0:00:13.8]} 28. Ne5+ {[%clk 0:00:18]} 28... Kf6 {[%clk 0:00:13.4]} 29. Ng4+
{[%clk 0:00:11.9]} 29... Kf5 {[%clk 0:00:13.5]} 30. c3 {[%clk 0:00:04.7]} 30...
dxc3 {[%clk 0:00:12.4]} 31. Ne3+ {[%clk 0:00:04.6]} 31... Kf6 {[%clk 0:00:12.3]}
32. Ng4+ {[%clk 0:00:04.7]} 32... Kf7 {[%clk 0:00:12.5]} 33. Rxc3 {[%clk
0:00:04.6]} 33... Rd7 {[%clk 0:00:08.5]} 34. Rc5 {[%clk 0:00:03.8]} 34... Rd5
{[%clk 0:00:02.5]} 35. Rc7+ {[%clk 0:00:03.7]} 35... Kf8 {[%clk 0:00:01.3]} 36.
Rxb7 {[%clk 0:00:03.5]} 1-0

[Event "*** Titled Tuesday Blitz"]
[Site "Chess.com"]
[Date "2020.11.24"]
[Round "5"]
[White "esapunov"]
[Black "GM_Levan_Pantsulaia"]
[Result "1-0"]
[WhiteElo "2811"]
[BlackElo "2831"]
[TimeControl "180+1"]
[EndTime "11:12:08 PST"]
[Termination "esapunov won by resignation"]

1. c4 {[%clk 0:03:00.9]} 1... c5 {[%clk 0:02:59.5]} 2. Nf3 {[%clk 0:02:58.5]}
2... b6 {[%clk 0:02:57.6]} 3. Nc3 {[%clk 0:02:55.1]} 3... Bb7 {[%clk 0:02:57.6]}
4. d4 {[%clk 0:02:54.8]} 4... cxd4 {[%clk 0:02:57.9]} 5. Nxd4 {[%clk 0:02:55]}
5... Nf6 {[%clk 0:02:58.1]} 6. f3 {[%clk 0:02:54.4]} 6... e6 {[%clk 0:02:58.5]}
7. e4 {[%clk 0:02:53.2]} 7... d6 {[%clk 0:02:59]} 8. Be3 {[%clk 0:02:52]} 8...
a6 {[%clk 0:02:58.5]} 9. Be2 {[%clk 0:02:52]} 9... Be7 {[%clk 0:02:58.6]} 10.
O-O {[%clk 0:02:51.8]} 10... O-O {[%clk 0:02:59]} 11. Qd2 {[%clk 0:02:52.1]}
11... Qc7 {[%clk 0:02:59]} 12. Rfc1 {[%clk 0:02:52.2]} 12... Nbd7 {[%clk
0:02:59.2]} 13. a4 {[%clk 0:02:52.3]} 13... Rab8 {[%clk 0:02:54.6]} 14. Bf1
{[%clk 0:02:41.6]} 14... Rfc8 {[%clk 0:02:53.8]} 15. Kh1 {[%clk 0:02:28.9]}
15... Ba8 {[%clk 0:02:53.2]} 16. Bg5 {[%clk 0:02:07.6]} 16... h6 {[%clk
0:02:52.2]} 17. Be3 {[%clk 0:02:06.8]} 17... Nc5 {[%clk 0:02:35.8]} 18. b4
{[%clk 0:01:59.8]} 18... Ncd7 {[%clk 0:02:35.5]} 19. Nce2 {[%clk 0:01:54.9]}
19... Ne5 {[%clk 0:02:26.9]} 20. Ng3 {[%clk 0:01:53.3]} 20... Qd8 {[%clk
0:02:24.5]} 21. Bf4 {[%clk 0:01:44.2]} 21... Ng6 {[%clk 0:02:10.7]} 22. Be3
{[%clk 0:01:43.8]} 22... Qf8 {[%clk 0:02:03.2]} 23. Rab1 {[%clk 0:01:33.8]}
23... Qe8 {[%clk 0:02:02.6]} 24. Ra1 {[%clk 0:01:32.9]} 24... Rd8 {[%clk
0:01:51.5]} 25. Nb3 {[%clk 0:01:25.2]} 25... d5 {[%clk 0:01:47.4]} 26. exd5
{[%clk 0:01:22.7]} 26... exd5 {[%clk 0:01:47]} 27. c5 {[%clk 0:01:23.2]} 27...
bxc5 {[%clk 0:01:35.6]} 28. Bxc5 {[%clk 0:01:19]} 28... d4 {[%clk 0:01:28.7]}
29. Bxa6 {[%clk 0:01:13.2]} 29... Bxc5 {[%clk 0:01:16.8]} 30. Nxc5 {[%clk
0:01:12.3]} 30... Nd5 {[%clk 0:01:17.3]} 31. Bb5 {[%clk 0:01:03.7]} 31... Qe5
{[%clk 0:01:16]} 32. Nd7 {[%clk 0:00:46.4]} 32... Rxd7 {[%clk 0:01:14.1]} 33.
Bxd7 {[%clk 0:00:46.5]} 33... Ne3 {[%clk 0:01:06.2]} 34. Bc6 {[%clk 0:00:41.4]}
34... Bxc6 {[%clk 0:00:59.7]} 35. Rxc6 {[%clk 0:00:40.8]} 35... Nh4 {[%clk
0:00:48.7]} 36. Rc5 {[%clk 0:00:36.4]} 36... Qd6 {[%clk 0:00:43.8]} 37. Rg1
{[%clk 0:00:32.4]} 37... Rd8 {[%clk 0:00:33.1]} 38. Qd3 {[%clk 0:00:30.7]} 38...
g6 {[%clk 0:00:27.5]} 39. a5 {[%clk 0:00:30.1]} 39... h5 {[%clk 0:00:22.1]} 40.
a6 {[%clk 0:00:29.6]} 40... Qb6 {[%clk 0:00:20.9]} 41. Ra5 {[%clk 0:00:24.5]}
41... Qxb4 {[%clk 0:00:19.8]} 42. Ra2 {[%clk 0:00:24.3]} 42... Ra8 {[%clk
0:00:18.1]} 43. a7 {[%clk 0:00:24.3]} 43... Nhf5 {[%clk 0:00:17.3]} 44. Nxf5
{[%clk 0:00:22.3]} 44... Nxf5 {[%clk 0:00:18.2]} 45. Rb1 {[%clk 0:00:22.3]}
45... Qe7 {[%clk 0:00:18.1]} 46. Qe4 {[%clk 0:00:21.2]} 46... Qd8 {[%clk
0:00:17.4]} 47. Qxa8 {[%clk 0:00:21]} 47... Qxa8 {[%clk 0:00:16.5]} 48. Rb8+
{[%clk 0:00:20.9]} 1-0

[Event "*** Titled Tuesday Blitz"]
[Site "Chess.com"]
[Date "2020.11.24"]
[Round "5"]
[White "SchmakAttack"]
[Black "Ladislav1969"]
[Result "1-0"]
[WhiteElo "2508"]
[BlackElo "2343"]
[TimeControl "180+1"]
[EndTime "11:12:08 PST"]
[Termination "SchmakAttack won on time"]

1. e4 {[%clk 0:03:00.9]} 1... c5 {[%clk 0:02:59.5]} 2. Nf3 {[%clk 0:03:00.9]}
2... e6 {[%clk 0:03:00.2]} 3. d4 {[%clk 0:03:01.3]} 3... cxd4 {[%clk 0:03:01.1]}
4. Nxd4 {[%clk 0:03:02]} 4... a6 {[%clk 0:03:01.7]} 5. Bd3 {[%clk 0:03:02]} 5...
Nc6 {[%clk 0:03:00.6]} 6. Nxc6 {[%clk 0:03:00.4]} 6... dxc6 {[%clk 0:03:01.5]}
7. O-O {[%clk 0:02:59.7]} 7... e5 {[%clk 0:03:01.8]} 8. Nd2 {[%clk 0:02:58.2]}
8... Nf6 {[%clk 0:03:01.5]} 9. Nc4 {[%clk 0:02:44.4]} 9... Qc7 {[%clk 0:02:47]}
10. a4 {[%clk 0:02:44]} 10... Be6 {[%clk 0:02:45.8]} 11. Qe2 {[%clk 0:02:31.8]}
11... Bc5 {[%clk 0:02:40.9]} 12. a5 {[%clk 0:02:29.4]} 12... O-O {[%clk
0:02:04.7]} 13. c3 {[%clk 0:02:07.1]} 13... Rad8 {[%clk 0:02:02]} 14. b4 {[%clk
0:02:04.9]} 14... Ba7 {[%clk 0:02:00.2]} 15. Be3 {[%clk 0:01:30.4]} 15... Bxe3
{[%clk 0:01:47.9]} 16. Qxe3 {[%clk 0:01:31.3]} 16... Bxc4 {[%clk 0:01:44.3]} 17.
Bxc4 {[%clk 0:01:32.2]} 17... Rd7 {[%clk 0:01:41.4]} 18. Rfd1 {[%clk 0:01:09.2]}
18... Rfd8 {[%clk 0:01:41.1]} 19. Be2 {[%clk 0:01:08.6]} 19... Rd6 {[%clk
0:01:27.6]} 20. f3 {[%clk 0:01:01.6]} 20... Rxd1+ {[%clk 0:01:20.9]} 21. Rxd1
{[%clk 0:01:01.1]} 21... Rxd1+ {[%clk 0:01:20.6]} 22. Bxd1 {[%clk 0:01:02]}
22... Qd6 {[%clk 0:01:15.5]} 23. Bb3 {[%clk 0:00:58.9]} 23... Nd7 {[%clk
0:01:12.4]} 24. Qe2 {[%clk 0:00:31.3]} 24... Kf8 {[%clk 0:01:10.1]} 25. Qc4
{[%clk 0:00:29.1]} 25... Qf6 {[%clk 0:01:00.8]} 26. Kf2 {[%clk 0:00:25.9]} 26...
Qf4 {[%clk 0:00:59.9]} 27. g3 {[%clk 0:00:18.3]} 27... Qd2+ {[%clk 0:00:49]} 28.
Kf1 {[%clk 0:00:18.6]} 28... Ke7 {[%clk 0:00:36.3]} 29. Qxf7+ {[%clk 0:00:18.2]}
29... Kd8 {[%clk 0:00:35.8]} 30. Be6 {[%clk 0:00:13.2]} 30... Qc1+ {[%clk
0:00:30.7]} 31. Kg2 {[%clk 0:00:13.1]} 31... Qd2+ {[%clk 0:00:27.4]} 32. Kh3
{[%clk 0:00:12.4]} 32... Qh6+ {[%clk 0:00:27]} 33. Kg2 {[%clk 0:00:08.8]} 33...
Qd2+ {[%clk 0:00:26.6]} 34. Kh3 {[%clk 0:00:09.4]} 34... Qh6+ {[%clk 0:00:26.1]}
35. Kg4 {[%clk 0:00:07.2]} 35... Nf6+ {[%clk 0:00:17]} 36. Kf5 {[%clk
0:00:07.4]} 36... Qh3+ {[%clk 0:00:06.7]} 37. Kxe5 {[%clk 0:00:05.9]} 37... Qxh2
{[%clk 0:00:06.3]} 38. Qxg7 {[%clk 0:00:03.1]} 1-0

[Event "*** Titled Tuesday Blitz"]
[Site "Chess.com"]
[Date "2020.11.24"]
[Round "5"]
[White "Zq1"]
[Black "Teidi96"]
[Result "1-0"]
[WhiteElo "2581"]
[BlackElo "2293"]
[TimeControl "180+1"]
[EndTime "11:12:12 PST"]
[Termination "Zq1 won on time"]

1. d4 {[%clk 0:03:00.9]} 1... Nf6 {[%clk 0:02:59.1]} 2. c4 {[%clk 0:03:00.9]}
2... e6 {[%clk 0:02:59.4]} 3. g3 {[%clk 0:03:00.6]} 3... d5 {[%clk 0:02:59.4]}
4. Bg2 {[%clk 0:03:00.4]} 4... Be7 {[%clk 0:03:00]} 5. Nf3 {[%clk 0:03:00.5]}
5... O-O {[%clk 0:03:00.4]} 6. Nc3 {[%clk 0:03:00.2]} 6... dxc4 {[%clk
0:03:00.1]} 7. Ne5 {[%clk 0:03:00.2]} 7... c5 {[%clk 0:02:55.6]} 8. dxc5 {[%clk
0:02:59]} 8... Qxd1+ {[%clk 0:02:53.8]} 9. Nxd1 {[%clk 0:02:58.6]} 9... Bxc5
{[%clk 0:02:54.3]} 10. Nxc4 {[%clk 0:02:57]} 10... Nc6 {[%clk 0:02:50.5]} 11.
Bxc6 {[%clk 0:02:56.5]} 11... bxc6 {[%clk 0:02:50.2]} 12. Be3 {[%clk 0:02:57.1]}
12... Bb4+ {[%clk 0:02:48.2]} 13. Bd2 {[%clk 0:02:57]} 13... Bc5 {[%clk
0:02:48.3]} 14. b3 {[%clk 0:02:50.3]} 14... Ne4 {[%clk 0:02:46]} 15. Be3 {[%clk
0:02:42.8]} 15... Bb4+ {[%clk 0:02:42.3]} 16. Kf1 {[%clk 0:02:42.8]} 16... Rd8
{[%clk 0:02:35.1]} 17. f3 {[%clk 0:02:40.2]} 17... Nd6 {[%clk 0:02:29.1]} 18.
Ndb2 {[%clk 0:02:38.3]} 18... Ba6 {[%clk 0:02:18.7]} 19. Rc1 {[%clk 0:02:37.3]}
19... Nxc4 {[%clk 0:02:10.5]} 20. Nxc4 {[%clk 0:02:36.4]} 20... Rd5 {[%clk
0:01:59.4]} 21. Kf2 {[%clk 0:02:32.7]} 21... Kf8 {[%clk 0:01:40.1]} 22. Rc2
{[%clk 0:02:30.3]} 22... Ke7 {[%clk 0:01:36.8]} 23. Rhc1 {[%clk 0:02:28.8]}
23... Kd7 {[%clk 0:01:33.2]} 24. Bd2 {[%clk 0:02:18.7]} 24... Bxd2 {[%clk
0:01:29.6]} 25. Nxd2 {[%clk 0:02:18]} 25... Rc8 {[%clk 0:01:18.5]} 26. Ne4
{[%clk 0:02:16.9]} 26... Bb7 {[%clk 0:01:01]} 27. Nc5+ {[%clk 0:02:15.9]} 27...
Kc7 {[%clk 0:01:01.5]} 28. e4 {[%clk 0:02:13.9]} 28... Rd4 {[%clk 0:00:54.4]}
29. Ke3 {[%clk 0:02:12.4]} 29... Rcd8 {[%clk 0:00:53.1]} 30. h4 {[%clk
0:01:54.5]} 30... Ba8 {[%clk 0:00:52]} 31. h5 {[%clk 0:01:52.7]} 31... h6 {[%clk
0:00:51.5]} 32. f4 {[%clk 0:01:49.9]} 32... Kb6 {[%clk 0:00:47.7]} 33. Rc3
{[%clk 0:01:42.1]} 33... Rd1 {[%clk 0:00:46.6]} 34. Rxd1 {[%clk 0:01:20.5]}
34... Rxd1 {[%clk 0:00:45.9]} 35. Nd3 {[%clk 0:01:20.3]} 35... Rg1 {[%clk
0:00:42.4]} 36. Kf3 {[%clk 0:01:10.4]} 36... f6 {[%clk 0:00:40.1]} 37. Nc5
{[%clk 0:01:05.1]} 37... Rf1+ {[%clk 0:00:22.1]} 38. Kg4 {[%clk 0:01:02.9]}
38... Re1 {[%clk 0:00:16.2]} 39. Nxe6 {[%clk 0:00:58.7]} 39... Rxe4 {[%clk
0:00:15.4]} 40. Nxg7 {[%clk 0:00:58.7]} 40... Bb7 {[%clk 0:00:15.6]} 41. Kf5
{[%clk 0:00:54.4]} 41... Re2 {[%clk 0:00:13.7]} 42. Kxf6 {[%clk 0:00:50.9]}
42... Rxa2 {[%clk 0:00:13.5]} 43. Nf5 {[%clk 0:00:50.8]} 43... Rh2 {[%clk
0:00:07.1]} 44. g4 {[%clk 0:00:49.2]} 44... Rg2 {[%clk 0:00:05.2]} 45. Nxh6
{[%clk 0:00:48.4]} 45... Bc8 {[%clk 0:00:04.5]} 46. f5 {[%clk 0:00:47.4]} 46...
a5 {[%clk 0:00:03.8]} 47. Nf7 {[%clk 0:00:43.6]} 47... Rxg4 {[%clk 0:00:02]} 48.
h6 {[%clk 0:00:42.7]} 48... Rf4 {[%clk 0:00:01.9]} 49. Nd6 {[%clk 0:00:39.8]}
49... Bd7 {[%clk 0:00:02.4]} 50. h7 {[%clk 0:00:38.8]} 50... Rh4 {[%clk
0:00:02.6]} 51. Kg6 {[%clk 0:00:36.6]} 51... Rg4+ {[%clk 0:00:03.1]} 52. Kh5
{[%clk 0:00:35.9]} 52... Rg1 {[%clk 0:00:02.7]} 53. Rh3 {[%clk 0:00:34.7]} 1-0